bitfinex-derivatives/quotes_SOLF0:USTF0_20250202
["timestamp","ask_amount","ask_price","bid_price","bid_amount"]
[1738513006384,4.7848,209.07,209.04,0.03387169]
[1738513006587,0.035061,209.08,209.04,0.03387169]
[1738513006983,13.85578357,209.05,208.86,173.73844605]
[1738513007179,1.5503,209.04,208.86,173.73844605]
[1738513007384,1.5503,209.04,208.86,13.85578357]
[1738513007686,4.7858,209.03,208.95,4.7874]
[1738513007886,1.5503,209.04,208.95,4.7874]
[1738513008082,1.5503,209.04,208.99,4.7865]
[1738513008286,13.85578357,209.13,208.97,0.03649406]
[1738513008486,0.0341343,209.02,208.97,0.03649406]
[1738513008784,0.03345676,209.02,208.97,0.03427336]
[1738513009485,0.03345676,209.02,209.01,4.7861]
[1738513009987,5.676e-05,209.02,209.01,4.7861]
[1738513011991,1.5503,209.15,208.98,14.57068357]
[1738513012191,1.5503,209.15,209.02,13.85578357]
[1738513013186,1.5503,209.15,209.06,0.03532966]
[1738513013391,0.03379954,209.11,209.06,0.03532966]
[1738513014094,0.03379954,209.11,209.08,4.7844]
[1738513014392,0.03379954,209.11,209.06,0.03532966]
[1738513016198,4.7843,209.09,209.06,0.03532966]
[1738513016401,0.03379954,209.11,209.06,0.03532966]
[1738513016797,4.7845,209.08,209.06,0.03532966]
[1738513017303,0.03379954,209.11,209.06,0.03532966]
[1738513017696,4.81759954,209.11,209.06,0.03532966]
[1738513018203,0.03379954,209.11,209.06,0.03532966]
[1738513018404,0.03379954,209.11,209.1,4.784]
[1738513020199,0.03379954,209.11,209.06,0.03532966]
[1738513020800,0.03379954,209.11,209.1,4.784]
[1738513021196,0.03379954,209.11,209.06,0.03532966]
[1738513022105,4.7841,209.1,209.06,0.03532966]
[1738513022404,0.03379954,209.11,209.06,0.03532966]
[1738513023698,4.7843,209.09,209.06,0.03532966]
[1738513024100,0.03379954,209.11,209.06,0.03532966]
[1738513024707,0.03379954,209.11,209.09,4.7841]
[1738513024899,0.03379954,209.11,209.06,0.03532966]
[1738513026411,0.03379954,209.11,208.95,1.4979]
[1738513026609,13.85578357,209.09,208.95,1.4979]
[1738513026909,1.523,209.08,208.95,1.4979]
[1738513027405,13.85578357,209.05,208.86,13.85578357]
[1738513027601,0.03296135,209.04,208.99,0.03026169]
[1738513027799,13.85578357,209.05,208.86,13.85578357]
[1738513028001,0.03070342,209.04,208.99,0.03128996]
[1738513028203,1.448,209.07,208.9,13.85578357]
[1738513028408,0.03610921,209.04,208.99,0.03031789]
[1738513028607,0.03610921,209.04,209.02,4.7858]
[1738513030209,0.03610921,209.04,209.0,4.7862]
[1738513030510,0.03610921,209.04,208.99,0.03031789]
[1738513030905,0.03610921,209.04,209.01,4.7861]
[1738513031607,9.21e-06,209.04,209.02,4.7858]
[1738513032306,9.21e-06,209.04,209.0,4.7863]
[1738513032511,9.21e-06,209.04,208.99,0.03031789]
[1738513032706,9.21e-06,209.04,209.02,13.85578357]
[1738513032908,3.0479,209.17,209.02,13.85578357]
[1738513033108,19.26187439,209.25,209.06,13.85578357]
[1738513033307,19.26187439,209.25,209.16,4.7825]
[1738513033308,19.26187439,209.23,209.16,4.7825]
[1738513033505,19.26187439,209.23,209.1,13.85578357]
[1738513033709,19.26187439,209.23,209.14,13.85578357]
[1738513033912,19.26187439,209.23,209.21,4.7815]
[1738513034607,19.26187439,209.23,209.18,13.85578357]
[1738513034608,18.50417439,209.23,209.18,13.85578357]
[1738513034810,18.50417439,209.23,209.16,0.03449717]
[1738513035015,45.90353799,209.24,209.18,13.85578357]
[1738513035215,0.03642631,209.24,209.19,1.466]
[1738513035410,0.03642631,209.24,209.22,4.7812]
[1738513035610,4.5777,209.34,209.19,1.466]
[1738513035807,13.85578357,209.42,209.22,13.85578357]
[1738513036015,4.777,209.41,209.31,4.7791]
[1738513036207,3.1262,209.43,209.31,13.85578357]
[1738513036407,1.5752,209.43,209.36,4.778]
[1738513036609,45.86711168,209.44,209.38,22.40793295]
[1738513036813,0.03246536,209.42,209.38,22.40793295]
[1738513037213,78.55129996,209.63,209.42,22.40793295]
[1738513037411,78.55129996,209.63,209.46,22.40793295]
[1738513037810,78.55129996,209.63,209.54,22.40793295]
[1738513038311,78.55129996,209.63,209.58,22.40793295]
[1738513038513,111.64755335,209.65,209.62,22.40793295]
[1738513038714,33.70740297,209.65,209.62,22.40793295]
[1738513039012,327.3449928,209.8,209.64,22.40793295]
[1738513039316,156.57629568,209.7,209.69,44.8158659]
[1738513039518,9.00710989,209.7,209.69,70.68379885]
[1738513039718,37.82019607,209.8,209.69,70.68379885]
[1738513039919,4.763,210.03,209.85,4.7669]
[1738513040220,22.40793295,210.14,209.96,22.40793295]
[1738513040412,0.95179174,210.13,209.96,22.40793295]
[1738513040717,0.03629914,210.07,210.04,288.73637028]
[1738513040918,0.03629914,210.07,210.04,311.14430323]
[1738513041119,0.95179174,210.13,210.04,22.40793295]
[1738513041316,6.3348,210.17,210.09,22.40793295]
[1738513041611,4.7599,210.17,210.09,22.40793295]
[1738513041917,1.5461,210.25,210.13,22.40793295]
[1738513042117,1.5461,210.25,210.17,22.40793295]
[1738513042517,0.03602439,210.21,210.17,22.43867712]
[1738513042713,0.03602439,210.21,210.18,53.1942726]
[1738513042920,0.03602439,210.21,210.18,19.30660183]
[1738513043119,0.03602439,210.21,210.1,31.38175119]
[1738513043718,22.40793295,210.18,210.1,25.63805269]
[1738513044512,4.761,210.12,210.1,18.30295269]
[1738513044711,22.40793295,210.13,209.93,1.4861]
[1738513045113,4.7606,210.13,210.12,156.52266453]
[1738513045321,3.52,210.15,210.11,8.693e-05]
[1738513045522,44.8158659,210.12,209.82,22.40793295]
[1738513045825,22.40793295,209.99,209.85,4.7669]
[1738513046026,22.40793295,209.99,209.78,22.40793295]
[1738513046317,0.03233245,209.94,209.9,0.0333386]
[1738513047916,4.7653,209.93,209.9,0.0333386]
[1738513048120,22.40793295,209.91,209.76,2.938]
[1738513048522,22.40793295,209.9,209.7,22.40793295]
[1738513048817,22.40793295,209.86,209.7,22.40793295]
[1738513049224,22.40793295,209.86,209.66,22.40793295]
[1738513049525,0.03051582,209.8,209.76,0.03239031]
[1738513049922,0.03051582,209.8,209.76,0.01029031]
[1738513051025,0.03051582,209.8,209.62,22.40793295]
[1738513051219,0.03051582,209.8,209.66,22.40793295]
[1738513051420,3.58,209.81,209.6,22.40793295]
[1738513051828,22.40793295,209.78,209.6,22.40793295]
[1738513052533,0.0355522,209.71,209.67,0.03476254]
[1738513053027,4.7691,209.76,209.63,4.7718]
[1738513053227,4.7691,209.76,209.64,4.7716]
[1738513053424,0.03600796,209.71,209.67,0.03338871]
[1738513054829,22.40793295,209.68,209.67,8.871e-05]
[1738513056832,4.7722,209.62,209.46,22.40793295]
[1738513057334,4.7727,209.6,209.46,22.40793295]
[1738513057525,22.40793295,209.64,209.46,22.40793295]
[1738513058033,0.03311096,209.57,209.53,0.03241083]
[1738513063935,0.03311096,209.57,209.54,4.7739]
[1738513064236,25.98793295,209.7,209.53,0.03241083]
[1738513064634,25.98793295,209.7,209.52,22.40793295]
[1738513064838,4.7713,209.66,209.59,4.7727]
[1738513065235,25.98793295,209.7,209.52,22.40793295]
[1738513065436,0.03334154,209.65,209.6,0.03253704]
[1738513066734,4.7721,209.63,209.6,0.03253704]
[1738513066939,0.03334154,209.65,209.6,0.03253704]
[1738513067236,0.03334154,209.65,209.61,4.7724]
[1738513067737,0.03334154,209.65,209.6,0.03253704]
[1738513068442,0.03334154,209.65,209.62,4.7721]
[1738513068639,0.03334154,209.65,209.6,22.44046999]
[1738513068840,25.96793295,209.8,209.64,22.40793295]
[1738513069144,3.56,209.8,209.64,22.40793295]
[1738513069444,4.7689,209.77,209.64,22.40793295]
[1738513069636,3.56,209.8,209.64,22.40793295]
[1738513069838,25.96793295,209.8,209.64,22.40793295]
[1738513070033,25.96793295,209.8,209.61,2.9672]
[1738513070241,0.03042804,209.74,209.7,0.03365433]
[1738513071135,4.7699,209.72,209.7,5.433e-05]
[1738513071434,27.17783295,209.72,209.7,5.433e-05]
[1738513071831,4.7728,209.6,209.51,2.8859]
[1738513072036,22.40793295,209.72,209.51,2.8859]
[1738513072437,4.7724,209.61,209.51,2.8859]
[1738513072842,4.7722,209.62,209.55,4.7737]
[1738513073042,0.03317386,209.58,209.54,0.03119223]
[1738513073443,22.40793295,209.64,209.51,1.4575]
[1738513073639,0.03306495,209.58,209.54,0.03251399]
[1738513074036,22.40793295,209.56,209.41,1.4284]
[1738513075237,0.03090963,209.51,209.46,0.03559171]
[1738513077542,0.03090963,209.51,209.49,4.775]
[1738513077951,4.7723,209.62,209.53,4.7741]
[1738513078151,3.56,209.66,209.48,22.40793295]
[1738513079050,4.7731,209.58,209.55,0.03540326]
[1738513079251,0.03184612,209.59,209.55,0.03540326]
[1738513079453,94.48,209.71,209.55,0.03540326]
[1738513079851,94.48,209.71,209.52,22.40793295]
[1738513080147,22.40793295,209.66,209.51,4.7745]
[1738513080347,22.40793295,209.66,209.5,1.5688]
[1738513080548,94.48,209.71,209.5,23.97673295]
[1738513080749,0.03109445,209.6,209.56,4.80659527]
[1738513081251,0.03139744,209.6,209.56,4.80885826]
[1738513081450,0.03139744,209.6,209.56,0.03535826]
[1738513081654,22.40793295,209.59,209.41,23.86603295]
[1738513081950,3.58,209.61,209.45,22.40793295]
[1738513082653,4.7734,209.57,209.48,4.7752]
[1738513082853,0.0347517,209.55,209.51,0.03574459]
[1738513083155,4.771,209.68,209.61,4.7723]
[1738513083351,94.48,209.71,209.57,22.40793295]
[1738513083952,116.88793295,209.71,209.55,1.4932]
[1738513084246,0.03213822,209.66,209.62,0.03349508]
[1738513084655,0.03213822,209.66,209.46,22.40793295]
[1738513084954,22.40793295,209.59,209.42,2.9271]
[1738513085154,3.58,209.6,209.42,2.9271]
[1738513085353,3.58,209.6,209.45,22.40793295]
[1738513085554,22.40793295,209.67,209.49,22.40793295]
[1738513085761,25.98793295,209.67,209.49,22.40793295]
[1738513085955,0.03452198,209.6,209.56,0.03430826]
[1738513086359,4.7729,209.59,209.56,0.03430826]
[1738513086554,4.7729,209.59,209.42,2.9271]
[1738513086555,22.40793295,209.58,209.42,2.9271]
[1738513087161,22.40793295,209.54,209.42,2.9271]
[1738513087362,4.7748,209.51,209.43,4.7764]
[1738513087571,3.58,209.53,209.42,2.9271]
[1738513087768,0.03407172,209.49,209.45,0.03193447]
[1738513088073,4.7756,209.47,209.45,0.03193447]
[1738513089771,4.7756,209.47,209.45,3.447e-05]
[1738513090070,4.7781,209.37,209.27,125.17677871]
[1738513090466,4.7781,209.37,209.29,4.7796]
[1738513090668,4.7788,209.33,209.21,126.61737871]
[1738513090870,3.58,209.4,209.21,126.61737871]
[1738513091173,4.7788,209.33,209.21,126.61737871]
[1738513091472,4.81543559,209.33,209.28,0.03112598]
[1738513091667,0.03663559,209.33,209.28,0.03112598]
[1738513091873,4.7796,209.3,209.28,0.03112598]
[1738513092268,4.7796,209.3,209.28,2.598e-05]
[1738513092269,3.6,209.29,209.28,2.598e-05]
[1738513093775,26.00793295,209.29,209.28,2.598e-05]
[1738513096771,4.7796,209.3,209.28,2.598e-05]
[1738513096977,0.03663559,209.33,209.28,2.598e-05]
[1738513097578,3.6,209.4,209.33,4.7787]
[1738513098077,3.6,209.43,209.29,2.961]
[1738513098275,3.6,209.43,209.31,22.40793295]
[1738513098475,18.99520829,209.59,209.35,22.40793295]
[1738513098677,18.99520829,209.59,209.35,22.43865329]
[1738513098678,4.15092519,209.55,209.35,22.43865329]
[1738513098879,22.40793295,209.47,209.35,0.03072034]
[1738513099076,22.40793295,209.47,209.31,22.40793295]
[1738513099273,3.6,209.54,209.38,22.40793295]
[1738513099882,22.40793295,209.51,209.31,22.40793295]
[1738513100079,0.03026777,209.48,209.44,0.03060406]
[1738513100279,3.6,209.54,209.29,2.961]
[1738513100280,22.40793295,209.47,209.29,2.961]
[1738513100578,3.6,209.54,209.44,5.4e-07]
[1738513100579,0.03461075,209.48,209.44,5.4e-07]
[1738513100773,22.40793295,209.5,209.29,2.961]
[1738513101078,22.40793295,209.43,209.29,2.961]
[1738513101477,26.00793295,209.43,209.29,2.961]
[1738513101680,0.03670907,209.38,209.34,0.03077771]
[1738513101879,4.7782,209.36,209.34,0.03077771]
[1738513102583,4.7782,209.36,209.34,7.771e-05]
[1738513104579,22.40793295,209.35,209.2,2.9163]
[1738513104878,22.40793295,209.31,209.2,2.9163]
[1738513105077,3.58,209.3,209.2,2.9163]
[1738513105983,22.44334715,209.27,209.23,0.03327945]
[1738513106284,22.44334715,209.27,209.23,7.945e-05]
[1738513106485,4.7808,209.24,209.23,7.945e-05]
[1738513108085,36.76334715,209.27,209.11,3.0084]
[1738513108386,22.40793295,209.21,209.11,3.0084]
[1738513108882,22.40793295,209.25,209.11,3.0084]
[1738513109086,22.40793295,209.21,209.11,3.0084]
[1738513109287,0.03502029,209.2,209.11,3.0084]
[1738513109887,0.03502029,209.2,209.15,4.7827]
[1738513110489,4.7808,209.24,209.16,4.7826]
[1738513110690,3.58,209.27,209.13,22.40793295]
[1738513110885,3.58,209.33,209.17,22.40793295]
[1738513111388,4.7798,209.29,209.21,4.7814]
[1738513111585,0.03469445,209.27,209.23,0.03364832]
[1738513111782,3.58,209.33,209.23,0.03364832]
[1738513113098,4.7806,209.25,209.23,0.03364832]
[1738513113387,3.58,209.33,209.23,0.03364832]
[1738513113388,3.58,209.4,209.23,0.03364832]
[1738513113588,22.40793295,209.31,209.13,22.40793295]
[1738513113892,22.40793295,209.27,209.11,3.0084]
[1738513114089,22.40793295,209.23,209.11,3.0084]
[1738513114289,4.7834,209.13,209.11,3.0084]
[1738513114485,0.0339573,209.19,209.11,3.0084]
[1738513114687,4.782,209.19,209.11,1.5054]
[1738513114895,0.03276566,209.17,209.11,1.5054]
[1738513115290,4.81536566,209.17,209.11,1.5054]
[1738513115596,0.03276566,209.17,209.12,0.03579931]
[1738513116590,4.7831,209.14,209.12,0.03579931]
[1738513116796,4.7831,209.14,209.12,9.931e-05]
[1738513117096,4.7847,209.08,209.02,7.89048789]
[1738513117296,8.3847,209.08,209.02,7.89048789]
[1738513117496,3.6,209.08,209.02,7.89048789]
[1738513118399,0.03397153,209.07,209.03,0.03599761]
[1738513119599,4.81887153,209.07,209.03,0.03599761]
[1738513120600,0.03397153,209.07,209.03,0.03599761]
[1738513120797,3.6,209.14,209.03,0.03599761]
[1738513121001,3.6,209.14,209.03,1.55309761]
[1738513121503,3.6,209.14,209.04,1.5103]
[1738513121996,94.66,209.21,209.06,22.40793295]
[1738513122303,3.6,209.27,209.11,22.40793295]
[1738513122497,26.00793295,209.31,209.11,22.40793295]
[1738513122698,26.00793295,209.31,209.23,4.781]
[1738513122894,94.7,209.37,209.19,22.40793295]
[1738513123098,22.40793295,209.32,209.2,1.5103]
[1738513123393,22.40793295,209.28,209.26,0.03212942]
[1738513124097,0.03318236,209.3,209.26,0.03212942]
[1738513124904,0.03318236,209.3,209.27,4.7801]
[1738513125105,0.03318236,209.3,209.26,0.03212942]
[1738513125799,3.6,209.34,209.28,4.7798]
[1738513125993,94.7,209.37,209.26,0.03212942]
[1738513125994,94.7,209.37,209.26,22.44006237]
[1738513126197,22.40793295,209.44,209.26,22.44006237]
[1738513126198,3.6,209.41,209.26,22.44006237]
[1738513126398,3.6,209.41,209.3,4.7793]
[1738513126603,22.40793295,209.4,209.21,1.5608]
[1738513127004,3.6,209.41,209.35,4.7782]
[1738513127505,0.03155464,209.4,209.38,4.7775]
[1738513127700,0.03155464,209.4,209.21,1.5608]
[1738513127701,3.6,209.5,209.36,0.03650015]
[1738513128100,22.40793295,209.48,209.35,3.0947]
[1738513129301,0.03306186,209.44,209.42,4.7766]
[1738513130102,89.74344744,209.52,209.47,4.7755]
[1738513130297,89.74344744,209.52,209.41,0.03234705]
[1738513130502,67.33551449,209.52,209.38,22.40793295]
[1738513130698,22.40793295,209.6,209.42,22.40793295]
[1738513131201,3.6,209.62,209.46,22.40793295]
[1738513131408,3.6,209.62,209.57,4.7732]
[1738513131807,3.6,209.62,209.55,4.7736]
[1738513132012,3.63095175,209.62,209.57,0.03041558]
[1738513132207,44.8158659,209.6,209.36,22.40793295]
[1738513132406,27.18223295,209.53,209.4,4.777]
[1738513132906,22.40793295,209.49,209.36,1.5472]
[1738513133106,22.40793295,209.49,209.38,4.7775]
[1738513133307,22.40793295,209.49,209.36,1.5472]
[1738513133605,0.03179346,209.46,209.41,0.03035471]
[1738513136614,22.40793295,209.45,209.41,0.03035471]
[1738513136816,0.03179346,209.46,209.41,0.03035471]
[1738513138414,4.7761,209.45,209.41,0.03035471]
[1738513138614,0.03179346,209.46,209.41,0.03035471]
[1738513139209,4.7765,209.43,209.41,0.03035471]
[1738513139507,22.40793295,209.42,209.41,5.471e-05]
[1738513140106,22.40793295,209.42,209.26,4.7801]
[1738513140314,22.40793295,209.42,209.21,4.53]
[1738513140315,22.40793295,209.38,209.21,4.53]
[1738513140513,3.58,209.39,209.26,4.7803]
[1738513140713,22.40793295,209.37,209.21,4.53]
[1738513141015,3.58,209.39,209.3,4.7794]
[1738513141218,8.3576,209.39,209.3,4.7794]
[1738513141512,0.03224674,209.37,209.32,0.03064108]
[1738513141817,3.58,209.47,209.36,22.40793295]
[1738513142013,3.58,209.47,209.37,3.1017]
[1738513142515,22.40793295,209.45,209.37,1.5426]
[1738513142712,3.58,209.47,209.37,1.5426]
[1738513142918,22.40793295,209.57,209.39,0.03195888]
[1738513143118,22.40793295,209.57,209.41,22.40793295]
[1738513143416,22.40793295,209.57,209.38,1.5591]
[1738513144010,4.774,209.54,209.42,22.40793295]
[1738513144316,0.03147652,209.5,209.45,4.80701073]
[1738513144518,0.03147652,209.5,209.45,0.03101073]
[1738513144911,93.32062226,209.6,209.45,0.03101073]
[1738513145106,4.7733,209.57,209.47,4.7755]
[1738513145314,4.7733,209.57,209.45,0.03101073]
[1738513145315,22.40793295,209.54,209.38,1.5591]
[1738513145617,93.32062226,209.6,209.42,22.40793295]
[1738513145813,22.40793295,209.51,209.38,1.5591]
[1738513146917,22.40793295,209.51,209.38,3.124]
[1738513147307,22.40793295,209.55,209.38,3.124]
[1738513147511,36.77793295,209.7,209.51,22.40793295]
[1738513147512,22.40793295,209.7,209.51,22.40793295]
[1738513147814,0.85696948,209.69,209.52,1.5495]
[1738513148015,0.0320325,209.63,209.56,4.7734]
[1738513148211,0.0320325,209.63,209.58,0.03473188]
[1738513149519,4.7727,209.6,209.58,0.03473188]
[1738513150118,4.7743,209.53,209.48,1.5039]
[1738513150315,22.40793295,209.57,209.4,1.4398]
[1738513150516,22.40793295,209.57,209.4,2.9437]
[1738513150819,22.40793295,209.53,209.4,2.9437]
[1738513151118,4.7771,209.41,209.32,4.7788]
[1738513151314,3.7,209.46,209.31,2.9437]
[1738513151518,3.7,209.46,209.44,0.03230588]
[1738513151718,3.7,209.46,209.31,2.9437]
[1738513151915,3.7,209.46,209.36,22.40793295]
[1738513152112,3.7,209.46,209.43,0.03352973]
[1738513152315,4.7763,209.44,209.31,2.9437]
[1738513152518,3.7,209.46,209.42,0.03516786]
[1738513152721,4.7762,209.45,209.42,0.03516786]
[1738513153014,3.7,209.46,209.31,2.9437]
[1738513153219,3.73068264,209.46,209.41,0.03384406]
[1738513153415,26.10793295,209.46,209.31,2.9437]
[1738513153617,22.40793295,209.42,209.41,9.411e-05]
[1738513153812,22.40793295,209.42,209.31,1.4398]
[1738513154512,26.10793295,209.46,209.31,1.4398]
[1738513154711,22.40793295,209.57,209.33,22.40793295]
[1738513155013,4.7741,209.54,209.37,22.40793295]
[1738513155220,26.10793295,209.57,209.41,22.40793295]
[1738513155521,3.7,209.57,209.42,3.0426]
[1738513155714,3.7,209.57,209.45,22.40793295]
[1738513155921,3.7,209.57,209.46,1.4294]
[1738513156115,1.5215,209.62,209.46,1.4294]
[1738513156318,0.03465569,209.54,209.49,0.03363278]
[1738513156718,0.03465569,209.54,209.52,4.7744]
[1738513156917,0.03465569,209.54,209.46,1.4294]
[1738513156918,94.54,209.63,209.49,22.43931047]
[1738513157119,0.55070001,209.66,209.49,22.43931047]
[1738513157324,5.2168,209.72,209.57,22.40793295]
[1738513157524,5.2168,209.72,209.58,1.559]
[1738513158023,5.2168,209.72,209.6,4.7725]
[1738513158224,0.03230286,209.67,209.63,0.03078375]
[1738513160324,4.7716,209.65,209.48,22.40793295]
[1738513160624,22.40793295,209.76,209.56,22.40793295]
[1738513160824,94.56,209.79,209.52,22.40793295]
[1738513160825,94.56,209.79,209.52,26.10793295]
[1738513161021,94.56,209.79,209.64,22.40793295]
[1738513161223,94.56,209.79,209.68,22.40793295]
[1738513161622,0.03014073,209.76,209.71,0.03097212]
[1738513162426,6.2982,209.85,209.71,0.03097212]
[1738513162622,1.5311,209.85,209.71,0.03097212]
[1738513162823,1.5311,209.85,209.7,1.4995]
[1738513163127,3.68,209.92,209.73,22.40793295]
[1738513163427,4.767,209.85,209.77,4.7686]
[1738513163728,0.03269202,209.84,209.79,0.0311927]
[1738513164729,22.40793295,209.81,209.7,1.4995]
[1738513165028,22.40793295,209.81,209.65,3.0801]
[1738513165320,22.40793295,209.77,209.65,3.0801]
[1738513165530,26.08793295,209.77,209.65,3.0801]
[1738513165919,0.03365991,209.73,209.69,0.0356213]
[1738513166317,0.03365991,209.73,209.71,4.77]
[1738513166727,0.03365991,209.73,209.69,0.0356213]
[1738513166928,0.03365991,209.73,209.7,4.7703]
[1738513167228,0.03365991,209.73,209.69,0.0356213]
[1738513167422,1.4278,209.83,209.69,0.0356213]
[1738513167728,1.5318,209.94,209.72,22.40793295]
[1738513167919,3.68,209.93,209.76,22.40793295]
[1738513168124,4.7658,209.9,209.82,4.7676]
[1738513168323,3.68,209.93,209.77,1.573]
[1738513168631,0.03142242,209.87,209.83,0.03507818]
[1738513168833,4.7672,209.84,209.83,0.03507818]
[1738513169225,22.40793295,209.86,209.71,1.5242]
[1738513169433,22.40793295,209.86,209.66,23.83143295]
[1738513169626,22.40793295,209.86,209.66,25.35563295]
[1738513169826,22.40793295,209.82,209.66,25.35563295]
[1738513170127,4.7691,209.76,209.68,4.7707]
[1738513170326,4.80022187,209.76,209.72,0.03625212]
[1738513170928,0.03112187,209.76,209.72,0.03625212]
[1738513171131,3.68,209.92,209.74,22.40793295]
[1738513171436,8.4455,209.92,209.85,4.7669]
[1738513171628,3.68,209.92,209.78,22.40793295]
[1738513171822,22.40793295,209.91,209.74,22.40793295]
[1738513172027,4.7667,209.86,209.79,4.7683]
[1738513172236,0.03406002,209.85,209.8,0.03279033]
[1738513172531,0.03406002,209.85,209.66,2.9477]
[1738513172532,4.7666,209.87,209.76,4.7689]
[1738513172732,0.0346619,209.85,209.8,0.03516061]
[1738513173145,4.7677,209.82,209.8,0.03516061]
[1738513173436,0.0346619,209.85,209.8,0.03516061]
[1738513174134,0.0346619,209.85,209.7,22.40793295]
[1738513174338,0.0346619,209.85,209.66,2.9477]
[1738513174339,22.40793295,209.9,209.74,22.40793295]
[1738513174638,3.68,209.91,209.74,22.40793295]
[1738513175035,4.7664,209.88,209.78,4.7685]
[1738513175235,0.03631489,209.85,209.8,0.03539325]
[1738513176539,0.03631489,209.85,209.8,22.4433262]
[1738513177642,0.03631489,209.85,209.82,4.7675]
[1738513177840,0.03631489,209.85,209.8,22.4433262]
[1738513178041,3.66,209.95,209.81,1.548]
[1738513178232,4.765,209.94,209.87,4.7664]
[1738513178439,23.91643295,210.0,209.84,22.40793295]
[1738513178440,1.5085,210.0,209.84,22.40793295]
[1738513178640,1.5085,210.0,209.88,22.40793295]
[1738513178840,3.66,210.01,209.88,22.40793295]
[1738513179141,3.66,210.01,209.84,22.40793295]
[1738513179340,0.03264836,209.97,209.92,0.03229665]
[1738513179544,22.40793295,209.96,209.92,0.03229665]
[1738513179740,22.40793295,209.96,209.81,1.548]
[1738513179940,23.91643295,210.0,209.81,1.548]
[1738513180342,23.91643295,210.0,209.84,22.40793295]
[1738513180538,94.52,210.03,209.81,1.548]
[1738513180846,22.40793295,210.04,209.95,4.7645]
[1738513180847,4.7627,210.04,209.95,4.7645]
[1738513181042,1.4663,210.08,209.92,22.40793295]
[1738513181340,4.7629,210.03,209.92,4.7653]
[1738513181549,1.4663,210.08,209.98,0.03503382]
[1738513181745,0.03130204,210.02,209.98,0.03503382]
[1738513181945,4.79460204,210.02,209.98,0.03503382]
[1738513182649,4.7637,210.0,209.98,0.03503382]
[1738513182950,0.03130204,210.02,209.98,0.03503382]
[1738513184546,4.7637,210.0,209.98,0.03503382]
[1738513184741,0.03130204,210.02,209.98,0.03503382]
[1738513185254,4.7636,210.0,209.98,0.03503382]
[1738513186047,0.03130204,210.02,209.98,0.03503382]
[1738513186746,4.7635,210.0,209.98,0.03503382]
[1738513187750,0.03130204,210.02,209.98,4.79893382]
[1738513187948,0.03130204,210.02,209.85,1.553]
[1738513188147,4.7643,209.97,209.85,1.553]
[1738513188449,22.40793295,209.99,209.85,1.553]
[1738513188753,3.64,210.0,209.85,1.553]
[1738513188948,22.40793295,210.07,209.88,22.40793295]
[1738513189145,0.03668612,209.95,209.9,0.03144737]
[1738513189343,22.40793295,210.03,209.9,4.7657]
[1738513189551,0.03482001,209.95,209.9,0.03645102]
[1738513189741,0.03482001,209.95,209.85,1.553]
[1738513189948,0.03482001,209.95,209.91,4.7656]
[1738513190256,3.64,210.08,209.9,0.03032647]
[1738513190550,3.64,210.08,209.97,4.7641]
[1738513191146,4.7623,210.06,209.99,4.7637]
[1738513191359,1.4419,210.17,210.0,22.40793295]
[1738513191650,1.4419,210.17,209.96,22.40793295]
[1738513191851,4.7614,210.1,210.06,0.0309619]
[1738513192052,0.03274634,210.11,210.06,0.0309619]
[1738513193050,4.7617,210.08,210.06,0.0309619]
[1738513193459,22.40793295,210.05,209.93,1.5521]
[1738513193657,26.06793295,210.05,209.93,1.5521]
[1738513194057,4.7645,209.96,209.93,1.5521]
[1738513194758,0.03056051,209.97,209.93,1.5521]
[1738513195950,0.03056051,209.97,209.95,4.7645]
[1738513196152,3.66,210.08,209.93,1.5521]
[1738513196560,4.7621,210.07,209.98,4.7639]
[1738513196753,3.66,210.08,209.94,22.40793295]
[1738513196962,3.66,210.08,209.98,22.40793295]
[1738513197352,22.40793295,210.17,210.06,4.7621]
[1738513197558,3.66,210.16,209.98,22.40793295]
[1738513197860,3.66,210.16,210.09,0.03633639]
[1738513198361,0.03348347,210.15,210.09,0.03633639]
[1738513198563,4.7611,210.11,210.09,0.03633639]
[1738513199061,0.03348347,210.15,210.09,0.03633639]
[1738513200356,4.7607,210.13,210.09,0.03633639]
[1738513200564,22.40793295,210.1,209.94,22.40793295]
[1738513201266,1.4914,210.16,210.02,22.40793295]
[1738513201460,4.7593,210.19,210.12,4.7608]
[1738513201764,0.03246791,210.18,210.13,0.03296686]
[1738513202462,0.03246791,210.18,210.16,4.7598]